fUSD/lending_fUSD_20240212
["ID","MTS","AMOUNT","RATE_DAILY","PERIOD"]
[313864188,1707756642963,-200.17180964,0.000317,2]
[313864190,1707756642973,-150.0,0.00031723,2]
[313864192,1707756642982,-152.0,0.00031725,2]
[313864195,1707756642992,-354.0,0.00031725,2]
[313864197,1707756643000,-495.99827526,0.0003175,2]
[313864199,1707756643010,-710.8,0.00031778,2]
[313864201,1707756643019,-151.0,0.000318,7]
[313864202,1707756643028,-151.0,0.000318,7]
[313864204,1707756643037,-151.0,0.000318,7]
[313864206,1707756643049,-151.0,0.000318,7]
[313864207,1707756643059,-151.0,0.000318,7]
[313864208,1707756643068,-151.0,0.000318,7]
[313864209,1707756643077,-151.0,0.000318,7]
[313864210,1707756643086,-151.0,0.000318,7]
[313864211,1707756643096,-180.765941,0.000318,7]
[313864212,1707756643105,-238.44746,0.000318,7]
[313864213,1707756643113,-151.0,0.000318,7]
[313864215,1707756643122,-180.765941,0.000318,7]
[313864216,1707756643131,-156.411887,0.000318,7]
[313864217,1707756643140,-359666.929101,0.000318,3]
[313864218,1707756643149,-3000.0,0.0003185,2]
[313864219,1707756643159,-206.0,0.0003185,10]
[313864220,1707756643168,-289.2,0.00031964,2]
[313864221,1707756643177,-630.78505277,0.0003198,120]
[313864222,1707756643187,-1021.0,0.0003198,120]
[313864223,1707756643196,-150.0,0.00031999,2]
[313864224,1707756643205,-50000.0,0.00032,2]
[313864225,1707756643214,-13160.34354298,0.00032,4]
[313864226,1707756643223,-900.0,0.00032,4]
[313864228,1707756643232,-20000.0,0.00032,3]
[313864230,1707756643241,-4000.0,0.00032,3]
[313864232,1707756643250,-600.0,0.00032,33]
[313864233,1707756643259,-1917.04998468,0.00032017,2]
[313864235,1707756643268,-500.0,0.00032089,2]
[313864237,1707756643277,-354.12,0.00032096,2]
[313864239,1707756643286,-153.40579228,0.00032178,2]
[313864241,1707756643297,-200.0,0.000322,5]
[313864243,1707756643306,-4829.63,0.000322,2]
[313864245,1707756643315,-72621.9666424,0.00032243,2]
[313864247,1707756643324,-56356.8682911,0.00032243,2]
[313864249,1707756643333,-591.46153739,0.00032253,2]
[313864252,1707756643342,-431.7534371,0.00032256,2]
[313864254,1707756643351,-431.7534371,0.00032256,2]
[313864255,1707756643360,-61217.6884979,0.00032256,2]
[313864257,1707756643369,-47448.6168397,0.00032256,2]
[313864259,1707756643378,-7012.1469886,0.00032256,2]
[313864262,1707756643388,-5434.9761295,0.00032256,2]
[313864264,1707756643397,-20664.9905182,0.00032256,2]
[313864266,1707756643406,-16018.4764664,0.00032256,2]
[313864268,1707756643415,-158385.9688539,0.00032256,2]
[313864269,1707756643424,-122772.9532449,0.00032256,2]
[313864272,1707756643434,-445345.81675054,0.00032262,2]
[313864274,1707756643452,-13249.9109869,0.00032262,2]
[313864277,1707756643467,-16758.621,0.00032262,2]
[313864279,1707756643479,-2000.0,0.00032262,2]
[313864305,1707756643719,-862.02,0.00027397,10]
[313864307,1707756643728,-150.0,0.00028503,2]
[313864309,1707756643737,-13170.37118212,0.00032262,2]
[313864312,1707756643753,-1412.610192,0.00032262,2]
[313864314,1707756643771,-2124878.28151849,0.00032262,2]
[313864316,1707756643780,-4140.23076173,0.00032262,2]
[313864318,1707756643790,-200000.0,0.00032262,7]
[313864321,1707756643799,-151.0,0.00032262,7]
[313864322,1707756643809,-151.0,0.00032262,7]
[313864325,1707756643818,-151.0,0.00032262,7]
[313864326,1707756643827,-151.0,0.00032262,7]
[313864328,1707756643838,-151.0,0.00032262,7]
[313864330,1707756643848,-180.765941,0.00032262,7]
[313864332,1707756643857,-151.0,0.00032262,7]
[313864334,1707756643866,-180.765941,0.00032262,7]
[313864336,1707756643875,-151.0,0.00032262,7]
[313864338,1707756643884,-151.0,0.00032262,7]
[313864340,1707756643894,-150.0,0.00032264,2]
[313864342,1707756643903,-150.0,0.00032264,2]
[313864344,1707756643912,-150.0,0.00032264,2]
[313864346,1707756643922,-150.0,0.00032264,2]
[313864348,1707756643932,-151.0,0.00032265,7]
[313864350,1707756643942,-151.0,0.00032265,7]
[313864353,1707756643952,-338.348826,0.00032265,7]
[313864355,1707756643961,-338.348826,0.00032265,7]
[313864356,1707756643970,-151.0,0.00032265,7]
[313864358,1707756643979,-151.0,0.00032265,7]
[313864360,1707756643991,-151.0,0.00032265,7]
[313864363,1707756644001,-599.54502,0.00032265,7]
[313864365,1707756644009,-599.54502,0.00032265,7]
[313864367,1707756644018,-151.0,0.00032265,7]
[313864369,1707756644027,-386.142924,0.00032265,7]
[313864371,1707756644036,-386.142924,0.00032265,7]
[313864373,1707756644047,-1406.683856,0.00032265,7]
[313864375,1707756644056,-1406.683856,0.00032265,7]
[313864376,1707756644065,-233574.83348886,0.00032278,2]
[313864379,1707756644075,-96760.55273184,0.00032278,2]
[313864380,1707756644084,-151.0,0.00032278,7]
[313864382,1707756644092,-151.0,0.00032278,7]
[313864384,1707756644101,-151.0,0.00032278,7]
[313864386,1707756644110,-151.0,0.00032278,7]
[313864388,1707756644119,-290.214752,0.00032278,7]
[313864390,1707756644129,-290.214752,0.00032278,7]
[313864392,1707756644138,-151.0,0.00032278,7]
[313864394,1707756644147,-151.0,0.00032278,7]
[313864396,1707756644156,-214.238353,0.00032278,7]
[313864398,1707756644165,-155.27321,0.00032278,7]
[313864400,1707756644174,-214.238353,0.00032278,7]
[313864402,1707756644183,-151.0,0.00032278,7]
[313864405,1707756644193,-151.601803,0.00032278,7]
[313864407,1707756644202,-151.0,0.00032278,7]
[313864409,1707756644212,-151.0,0.00032278,7]
[313864411,1707756644221,-415.737418,0.00032278,7]
[313864413,1707756644230,-151.0,0.00032278,7]
[313864415,1707756644239,-415.737418,0.00032278,7]
[313864417,1707756644248,-151.0,0.00032278,7]
[313864418,1707756644257,-151.0,0.00032278,7]
[313864420,1707756644267,-151.0,0.00032278,7]
[313864423,1707756644276,-151.0,0.00032278,7]
[313864425,1707756644285,-151.0,0.00032278,7]
[313864426,1707756644296,-151.0,0.00032278,7]
[313864427,1707756644305,-151.0,0.00032278,7]
[313864428,1707756644314,-151.0,0.00032278,7]
[313864429,1707756644324,-151.0,0.00032278,7]
[313864430,1707756644333,-168.766293,0.00032278,7]
[313864431,1707756644342,-151.0,0.00032278,7]
[313864432,1707756644351,-151.0,0.00032278,7]
[313864433,1707756644360,-151.0,0.00032278,5]
[313864434,1707756644370,-1624.5,0.00032278,7]
[313864435,1707756644379,-1624.5,0.00032278,7]
[313864436,1707756644389,-347.317455,0.00032278,7]
[313864438,1707756644398,-347.317455,0.00032278,7]
[313864440,1707756644408,-237.612106,0.00032278,7]
[313864442,1707756644417,-151.0,0.00032278,7]
[313864444,1707756644426,-237.612106,0.00032278,7]
[313864446,1707756644435,-246.073602,0.00032278,7]
[313864448,1707756644445,-246.073602,0.00032278,7]
[313864450,1707756644454,-151.0,0.00032278,7]
[313864452,1707756644464,-151.0,0.00032278,7]
[313864454,1707756644473,-1046.90660704,0.00032287,4]
[313864456,1707756644482,-396.13766104,0.00032287,4]
[313864458,1707756644491,-2165.43077537,0.00032287,4]
[313864460,1707756644501,-1391.27558582,0.00032287,4]
[313864462,1707756644512,-457.24943368,0.00032287,4]
[313864464,1707756644521,-1000.0,0.00032287,7]
[313864466,1707756644531,-2637.77756253,0.00032287,4]
[313864468,1707756644540,-907.95599523,0.00032287,4]
[313864470,1707756644549,-1401.87395578,0.00032287,4]
[313864472,1707756644558,-1825.46128271,0.00032287,4]
[313864474,1707756644568,-266.59203686,0.00032287,4]
[313864476,1707756644577,-7018.28434674,0.0003235,4]
[313864478,1707756644586,-150.0,0.00032378,2]
[313864480,1707756644596,-3000.0,0.0003247,2]
[313864482,1707756644606,-153.79,0.000325,2]
[313864484,1707756644615,-153.79,0.000325,2]
[313864486,1707756644625,-153.79,0.000325,2]
[313864488,1707756644634,-153.79,0.000325,2]
[313864490,1707756644644,-153.79,0.000325,2]
[313864492,1707756644653,-153.79,0.000325,2]
[313864494,1707756644662,-153.79,0.000325,2]
[313864496,1707756644672,-153.79,0.000325,2]
[313864498,1707756644682,-153.79,0.000325,2]
[313864500,1707756644691,-153.79,0.000325,2]
[313864502,1707756644701,-153.79,0.000325,2]
[313864504,1707756644711,-153.79,0.000325,2]
[313864506,1707756644720,-150.0,0.00032516,2]
[313864508,1707756644729,-1231.0,0.00032575,2]
[313864510,1707756644739,-216.0,0.00032575,2]
[313864512,1707756644749,-1253.0,0.00032575,2]
[313864514,1707756644762,-500.0,0.00032612,2]
[313864517,1707756644771,-200.0,0.00032612,2]
[313864519,1707756644781,-500.0,0.00032689,2]
[313864521,1707756644791,-500.0,0.00032689,2]
[313864523,1707756644801,-500.0,0.00032689,2]
[313864525,1707756644811,-500.0,0.00032689,2]
[313864527,1707756644820,-500.0,0.00032689,2]
[313864529,1707756644829,-500.0,0.00032689,2]
[313864531,1707756644839,-500.0,0.00032689,2]
[313864533,1707756644849,-500.0,0.00032689,2]
[313864535,1707756644859,-500.0,0.00032689,2]
[313864537,1707756644868,-500.0,0.00032689,2]
[313864539,1707756644877,-500.0,0.00032689,2]
[313864541,1707756644886,-500.0,0.00032689,2]
[313864543,1707756644897,-500.0,0.00032689,2]
[313864545,1707756644907,-500.0,0.00032689,2]
[313864547,1707756644917,-500.0,0.00032689,2]
[313864549,1707756644926,-500.0,0.00032689,2]
[313864551,1707756644935,-500.0,0.00032689,2]
[313864553,1707756644945,-500.0,0.00032689,2]
[313864554,1707756644955,-500.0,0.00032689,2]
[313864557,1707756644964,-500.0,0.00032689,2]
[313864559,1707756644974,-500.0,0.00032689,2]
[313864561,1707756644983,-500.0,0.00032689,2]
[313864563,1707756644993,-500.0,0.00032689,2]
[313864565,1707756645003,-500.0,0.00032689,2]
[313864567,1707756645013,-500.0,0.00032689,2]
[313864569,1707756645022,-500.0,0.00032689,2]
[313864571,1707756645032,-500.0,0.00032689,2]
[313864573,1707756645041,-500.0,0.00032689,2]
[313864575,1707756645050,-500.0,0.00032689,2]
[313864577,1707756645060,-500.0,0.00032689,2]
[313864579,1707756645070,-500.0,0.00032689,2]
[313864581,1707756645081,-500.0,0.00032689,2]
[313864583,1707756645091,-500.0,0.00032689,2]
[313864585,1707756645102,-500.0,0.00032689,2]
[313864587,1707756645112,-500.0,0.00032689,2]
[313864589,1707756645122,-500.0,0.00032689,2]
[313864591,1707756645132,-500.0,0.00032689,2]
[313864593,1707756645142,-500.0,0.00032689,2]
[313864596,1707756645152,-500.0,0.00032689,2]
[313864598,1707756645162,-500.0,0.00032689,2]
[313864600,1707756645172,-500.0,0.00032689,2]
[313864602,1707756645181,-500.0,0.00032689,2]
[313864604,1707756645191,-500.0,0.00032689,2]
[313864606,1707756645201,-500.0,0.00032689,2]
[313864608,1707756645210,-500.0,0.00032689,2]
[313864610,1707756645219,-500.0,0.00032689,2]
[313864612,1707756645229,-500.0,0.00032689,2]
[313864614,1707756645238,-500.0,0.00032689,2]
[313864616,1707756645248,-450.0,0.00032689,2]
[313864618,1707756645257,-500.0,0.00032689,2]
[313864621,1707756645266,-500.0,0.00032689,2]
[313864624,1707756645275,-500.0,0.00032689,2]
[313864627,1707756645284,-500.0,0.00032689,2]
[313864630,1707756645295,-500.0,0.00032689,2]
[313864633,1707756645305,-500.0,0.00032689,2]
[313864635,1707756645315,-500.0,0.00032689,2]
[313864637,1707756645326,-500.0,0.00032689,2]
[313864639,1707756645335,-500.0,0.00032689,2]
[313864641,1707756645344,-500.0,0.00032689,2]
[313864643,1707756645354,-500.0,0.00032689,2]
[313864645,1707756645364,-500.0,0.00032689,2]
[313864647,1707756645374,-500.0,0.00032689,2]
[313864649,1707756645383,-500.0,0.00032689,2]
[313864651,1707756645393,-500.0,0.00032689,2]
[313864653,1707756645404,-500.0,0.00032689,2]
[313864655,1707756645414,-500.0,0.00032689,2]
[313864658,1707756645424,-500.0,0.00032689,2]
[313864661,1707756645434,-500.0,0.00032689,2]
[313864664,1707756645444,-500.0,0.00032689,2]
[313864666,1707756645454,-500.0,0.00032689,2]
[313864668,1707756645464,-500.0,0.00032689,2]
[313864670,1707756645474,-500.0,0.00032689,2]
[313864672,1707756645483,-500.0,0.00032689,2]
[313864674,1707756645493,-500.0,0.00032689,2]
[313864676,1707756645502,-500.0,0.00032689,2]
[313864678,1707756645512,-500.0,0.00032689,2]
[313864680,1707756645522,-500.0,0.00032689,2]
[313864682,1707756645532,-500.0,0.00032689,2]
[313864684,1707756645542,-500.0,0.00032689,2]
[313864686,1707756645552,-500.0,0.00032689,2]
[313864688,1707756645561,-500.0,0.00032689,2]
[313864690,1707756645571,-500.0,0.00032689,2]
[313864693,1707756645581,-500.0,0.00032689,2]
[313864695,1707756645592,-500.0,0.00032689,2]
[313864697,1707756645602,-500.0,0.00032689,2]
[313864699,1707756645611,-500.0,0.00032689,2]
[313864701,1707756645620,-500.0,0.00032689,2]
[313864703,1707756645630,-500.0,0.00032689,2]
[313864705,1707756645639,-500.0,0.00032689,2]
[313864707,1707756645649,-500.0,0.00032689,2]
[313864709,1707756645659,-500.0,0.00032689,2]
[313864711,1707756645668,-500.0,0.00032689,2]
[313864713,1707756645678,-500.0,0.00032689,2]
[313864715,1707756645688,-500.0,0.00032689,2]
[313864717,1707756645697,-500.0,0.00032689,2]
[313864719,1707756645707,-500.0,0.00032689,2]
[313864721,1707756645717,-500.0,0.00032689,2]
[313864723,1707756645727,-500.0,0.00032689,2]
[313864725,1707756645736,-500.0,0.00032689,2]
[313864727,1707756645746,-500.0,0.00032689,2]
[313864729,1707756645756,-500.0,0.00032689,2]
[313864731,1707756645767,-500.0,0.00032689,2]
[313864733,1707756645778,-500.0,0.00032689,2]
[313864735,1707756645787,-500.0,0.00032689,2]
[313864737,1707756645799,-500.0,0.00032689,2]
[313864739,1707756645808,-500.0,0.00032689,2]
[313864741,1707756645818,-500.0,0.00032689,2]
[313864743,1707756645827,-500.0,0.00032689,2]
[313864745,1707756645837,-200.0,0.000327,5]
[313864747,1707756645847,-394.47,0.00032708,2]
[313864749,1707756645857,-151.0,0.00032711,7]
[313864751,1707756645866,-290.214752,0.00032711,7]
[313864753,1707756645877,-290.214752,0.00032711,7]
[313864755,1707756645887,-279.64,0.00032811,2]
[313864757,1707756645897,-9680.93388491,0.00032876,2]
[313864759,1707756645906,-992.86283404,0.00032876,2]
[313864761,1707756645916,-3446.01129655,0.00032876,5]
[313864763,1707756645926,-1000.0,0.00032876,2]
[313864765,1707756645935,-1107.30533827,0.00032876,2]
[313864768,1707756645945,-381.77699589,0.00032876,5]
[313864770,1707756645954,-5000.0,0.00032876,2]
[313864772,1707756645963,-1000.0,0.00032876,7]
[313864774,1707756645973,-500.0,0.00032876,2]
[313864776,1707756645982,-500.0,0.00032876,2]
[313864778,1707756645991,-500.0,0.00032876,2]
[313864780,1707756646000,-500.0,0.00032876,2]
[313864782,1707756646010,-500.0,0.00032876,2]
[313864783,1707756646020,-500.0,0.00032876,2]
[313864786,1707756646030,-500.0,0.00032876,2]
[313864788,1707756646039,-500.0,0.00032876,2]
[313864790,1707756646052,-500.0,0.00032876,2]
[313864792,1707756646061,-500.0,0.00032876,2]
[313864794,1707756646070,-500.0,0.00032876,2]
[313864796,1707756646079,-500.0,0.00032876,2]
[313864798,1707756646089,-500.0,0.00032876,2]
[313864800,1707756646098,-500.0,0.00032876,2]
[313864802,1707756646108,-500.0,0.00032876,2]
[313864804,1707756646117,-500.0,0.00032876,2]
[313864806,1707756646127,-282.14906367,0.00032876,2]
[313864808,1707756646137,-1097.46095101,0.00032876,2]
[313864810,1707756646147,-2731.74,0.00032876,2]
[313864812,1707756646159,-150.94042826,0.00032877,2]
[313864814,1707756646169,-228.92,0.00032877,2]
[313864816,1707756646181,-1125.0,0.000329,2]
[313864818,1707756646192,-1321.46,0.000329,7]
[313864820,1707756646203,-2000.0,0.000329,2]
[313864822,1707756646214,-1000.0,0.000329,7]
[313864824,1707756646225,-8000.0,0.000329,2]
[313864827,1707756646236,-1021.0,0.0003298,120]
[313864829,1707756646245,-150.0,0.00032999,2]
[313864831,1707756646255,-150.0,0.00032999,2]
[313864833,1707756646264,-150.0,0.00032999,2]
[313864835,1707756646275,-50000.0,0.00033,3]
[313864837,1707756646285,-2000.0,0.00033,2]
[313864839,1707756646298,-368.40089462,0.00033,4]
[313864841,1707756646308,-6414.61118895,0.00033,4]
[313864843,1707756646319,-203.18343961,0.00033,2]
[313864845,1707756646328,-1400.0,0.00033,2]
[313864847,1707756646339,-156.42439688,0.00033,2]
[313864849,1707756646349,-1559.9054055,0.00033,2]
[313864851,1707756646358,-300.0,0.00033,34]
[313864853,1707756646368,-1000.0,0.00033,2]
[313864856,1707756646378,-153.0,0.00033,10]
[313864858,1707756646387,-462.36944518,0.00033,4]
[313864860,1707756646397,-185.0,0.00033,2]
[313864862,1707756646406,-7018.28434674,0.00033,5]
[313864864,1707756646416,-206.0,0.0003313,13]
[313864866,1707756646427,-3270.98502175,0.0003315,3]
[313864868,1707756646437,-200.0,0.000332,6]
[313864870,1707756646446,-152.0,0.00033246,4]
[313864872,1707756646456,-5000.0,0.000333,2]
[313864874,1707756646465,-162969.75065652,0.000333,3]
[313864876,1707756646475,-1321.46,0.000333,7]
[313864878,1707756646484,-151.0,0.000333,7]
[313864880,1707756646496,-151.0,0.000333,7]
[313864882,1707756646506,-415.737418,0.000333,7]
[313864885,1707756646515,-289.477608,0.000333,7]
[313864887,1707756646525,-415.737418,0.000333,7]
[313864889,1707756646534,-151.0,0.000333,7]
[313864891,1707756646546,-151.0,0.000333,7]
[313864893,1707756646556,-151.0,0.000333,7]
[313864918,1707756646791,-151.0,0.000333,7]
[313864920,1707756646803,-151.0,0.000333,7]
[313864922,1707756646813,-151.0,0.000333,7]
[313864924,1707756646823,-151.0,0.000333,7]
[313864926,1707756646833,-151.0,0.000333,7]
[313864928,1707756646842,-151.0,0.000333,7]
[313864930,1707756646852,-259.169308,0.000333,7]
[313864932,1707756646862,-151.0,0.000333,7]
[313864934,1707756646872,-151.0,0.000333,5]
[313864937,1707756646882,-1624.5,0.000333,7]
[313864939,1707756646891,-1624.5,0.000333,7]
[313864941,1707756646901,-347.317455,0.000333,7]
[313864943,1707756646911,-347.317455,0.000333,7]
[313864945,1707756646920,-237.612106,0.000333,7]
[313864947,1707756646930,-151.0,0.000333,7]
[313864949,1707756646940,-237.612106,0.000333,7]
[313864951,1707756646950,-246.073602,0.000333,7]
[313864953,1707756646959,-246.073602,0.000333,7]
[313864955,1707756646969,-151.0,0.000333,7]
[313864957,1707756646978,-151.0,0.000333,7]
[313864959,1707756646990,-151.0,0.000333,7]
[313864961,1707756646999,-338.348826,0.000333,7]
[313864963,1707756647009,-338.348826,0.000333,7]
[313864965,1707756647018,-151.0,0.000333,7]
[313864967,1707756647028,-151.0,0.000333,7]
[313864969,1707756647037,-151.0,0.000333,7]
[313864971,1707756647047,-599.54502,0.000333,7]
[313864973,1707756647057,-599.54502,0.000333,7]
[313864975,1707756647066,-151.0,0.000333,7]
[313864977,1707756647075,-150.0,0.00033309,2]
[313864979,1707756647084,-151.0,0.00033359,7]
[313864981,1707756647094,-214.238353,0.00033359,7]
[313864983,1707756647103,-214.238353,0.00033359,7]
[313864985,1707756647111,-151.0,0.00033359,7]
[313864986,1707756647120,-152.0,0.00033368,2]
[313864987,1707756647129,-354.0,0.00033368,2]
[313864988,1707756647138,-150.0,0.00033378,2]
[313864989,1707756647147,-1000.0,0.000334,7]
[313864990,1707756647156,-151.0,0.000335,7]
[313864991,1707756647165,-151.0,0.000335,7]
[313864992,1707756647175,-1331.38,0.000335,2]
[313864993,1707756647184,-1331.38,0.000335,2]
[313864994,1707756647193,-1331.38,0.000335,2]
[313864995,1707756647202,-1331.38,0.000335,2]
[313864997,1707756647211,-1331.38,0.000335,2]
[313864999,1707756647221,-1331.38,0.000335,2]
[313865001,1707756647230,-1331.38,0.000335,2]
[313865003,1707756647239,-1331.38,0.000335,2]
[313865005,1707756647248,-1331.38,0.000335,2]
[313865007,1707756647258,-1331.38,0.000335,2]
[313865009,1707756647267,-1331.38,0.000335,2]
[313865011,1707756647276,-1331.38,0.000335,2]
[313865013,1707756647285,-1331.38,0.000335,2]
[313865015,1707756647295,-1331.38,0.000335,2]
[313865017,1707756647305,-1331.38,0.000335,2]
[313865019,1707756647314,-1331.38,0.000335,2]
[313865021,1707756647324,-1331.38,0.000335,2]
[313865023,1707756647333,-1331.38,0.000335,2]
[313865025,1707756647342,-1331.38,0.000335,2]
[313865027,1707756647351,-1331.38,0.000335,2]
[313865029,1707756647360,-151.0,0.000335,7]
[313865031,1707756647369,-273.566536,0.000335,7]
[313865033,1707756647379,-151.0,0.000335,7]
[313865035,1707756647388,-180.765941,0.000335,7]
[313865037,1707756647397,-151.0,0.000335,7]
[313865039,1707756647407,-180.765941,0.000335,7]
[313865041,1707756647417,-386.142924,0.000335,7]
[313865043,1707756647426,-386.142924,0.000335,7]
[313865045,1707756647436,-1406.683856,0.000335,7]
[313865047,1707756647445,-1406.683856,0.000335,7]
[313865048,1707756647454,-1917.04998468,0.00033562,2]
[313865051,1707756647464,-177.39,0.00033599,120]
[313865053,1707756647473,-7018.28434674,0.0003365,5]
[313865055,1707756647482,-22533.74498828,0.0003366,2]
[313865057,1707756647492,-151.0,0.0003367,7]
[313865058,1707756647502,-1000.0,0.00033698,9]
[313865061,1707756647511,-200.0,0.000337,6]
[313865063,1707756647521,-476.34639156,0.000337,2]
[313865065,1707756647531,-914.46,0.00033781,2]
[313865067,1707756647542,-914.46,0.00033781,2]
[313865069,1707756647553,-500.0,0.0003389,10]
[313865071,1707756647562,-809.7,0.0003389,2]
[313865073,1707756647572,-914.46,0.0003389,2]
[313865075,1707756647581,-1321.46,0.000339,7]
[313865077,1707756647591,-151.0,0.000339,7]
[313865079,1707756647600,-151.0,0.000339,7]
[313865081,1707756647610,-151.0,0.000339,7]
[313865083,1707756647619,-1000.0,0.000339,7]
[313865085,1707756647629,-153.95521071,0.000339,2]
[313865087,1707756647639,-153.95521056,0.000339,2]
[313865089,1707756647648,-153.95521056,0.000339,2]
[313865091,1707756647658,-153.95521056,0.000339,2]
[313865093,1707756647668,-153.95521056,0.000339,2]
[313865095,1707756647678,-153.95521056,0.000339,2]
[313865097,1707756647689,-153.95521056,0.000339,2]
[313865099,1707756647699,-153.95521056,0.000339,2]
[313865101,1707756647708,-153.95521056,0.000339,2]
[313865104,1707756647718,-153.95521056,0.000339,2]
[313865106,1707756647727,-153.95521056,0.000339,2]
[313865108,1707756647737,-153.95521056,0.000339,2]
[313865110,1707756647746,-500.0,0.0003397,2]
[313865112,1707756647756,-914.46,0.00033973,2]
[313865113,1707756647767,-151.0,0.00033976,7]
[313865115,1707756647777,-176.840661,0.00033976,7]
[313865118,1707756647787,-5000.0,0.0003398,2]
[313865120,1707756647796,-1021.0,0.0003398,120]
[313865121,1707756647805,-150.0,0.00033999,2]
[313865123,1707756647816,-50000.0,0.00034,4]
[313865125,1707756647825,-767.48185692,0.00034,4]
[313865128,1707756647834,-20000.0,0.00034,2]
[313865130,1707756647844,-300.0,0.00034,35]
[313865131,1707756647854,-10000.0,0.00034,8]
[313865133,1707756647867,-7451.13057437,0.00034,2]
[313865135,1707756647876,-172.37660514,0.00034,5]
[313865137,1707756647886,-861.29735189,0.00034,4]
[313865139,1707756647895,-151.0,0.00034,7]
[313865141,1707756647904,-300.88,0.00034,2]
[313865144,1707756647914,-207.0,0.0003402,2]
[313865146,1707756647923,-153.95521056,0.00034037,2]
[313865148,1707756647933,-150.0,0.00034102,2]
[313865150,1707756647943,-431.7534371,0.00034192,2]
[313865152,1707756647952,-33679.5451814,0.00034192,2]
[313865154,1707756647961,-3857.8052703,0.00034192,2]
[313865156,1707756647970,-11371.9624146,0.00034192,2]
[313865158,1707756647979,-200.0,0.000342,7]
[313865160,1707756647988,-40091.7699398,0.000342,2]
[313865162,1707756647997,-8000.0,0.000342,2]
[313865164,1707756648006,-134101.13251568,0.00034223,2]
[313865166,1707756648015,-290.214752,0.00034223,7]
[313865168,1707756648024,-290.214752,0.00034223,7]
[313865170,1707756648033,-288.657376,0.00034239,7]
[313865172,1707756648043,-151.0,0.00034239,7]
[313865174,1707756648053,-151.0,0.00034239,7]
[313865176,1707756648063,-151.0,0.00034239,7]
[313865178,1707756648072,-151.0,0.00034239,7]
[313865180,1707756648081,-151.0,0.00034239,7]
[313865182,1707756648090,-180.765941,0.00034239,7]
[313865184,1707756648099,-151.0,0.00034239,7]
[313865186,1707756648107,-180.765941,0.00034239,7]
[313865188,1707756648116,-100276.25549228,0.00034239,2]
[313865190,1707756648125,-368.21709689,0.000343,2]
[313865192,1707756648134,-1321.46,0.000343,7]
[313865194,1707756648144,-7018.28434674,0.000343,6]
[313865196,1707756648153,-200.17180962,0.000343,2]
[313865198,1707756648162,-150.0,0.00034378,2]
[313865200,1707756648171,-153.95521056,0.00034382,2]
[313865202,1707756648180,-5007.0,0.000344,30]
[313865204,1707756648189,-1709.0,0.000344,2]
[313865206,1707756648199,-206.0,0.00034409,15]
[313865208,1707756648207,-500.0,0.00034438,10]
[313865210,1707756648217,-1158.187494,0.000345,2]
[313865212,1707756648226,-36511.351644,0.0003452,2]
[313865214,1707756648235,-6469.966216,0.0003452,2]